bitfinex-derivatives/quotes_BNBF0:USTF0_20251219
["timestamp","ask_amount","ask_price","bid_price","bid_amount"]
[1766152789162,1.17543901,848.42,847.51,1.17500927]
[1766152789366,1.17543901,848.41,847.51,1.17500927]
[1766152789566,1.17543901,848.4,847.51,1.17500927]
[1766152789865,1.17543901,848.39,847.51,1.17500927]
[1766152790065,1.17543901,848.38,847.51,1.17500927]
[1766152790266,1.17543901,848.37,847.51,1.17500927]
[1766152790463,1.17543901,848.36,847.51,1.17500927]
[1766152790662,1.17543901,848.35,847.51,1.17500927]
[1766152790966,1.17543901,848.34,847.51,1.17500927]
[1766152791166,1.17543901,848.33,847.51,1.17500927]
[1766152791362,1.17543901,848.32,847.51,1.17500927]
[1766152791566,1.17543901,848.31,847.51,1.17500927]
[1766152791866,1.17961282,848.51,847.51,1.17500927]
[1766152792162,1.17635741,848.5,847.51,1.17500927]
[1766152792366,1.17635741,848.49,847.51,1.17500927]
[1766152792666,1.17635741,848.48,847.51,1.17500927]
[1766152792967,1.17635741,848.47,847.51,1.17500927]
[1766152793164,1.17635741,848.46,847.51,1.17500927]
[1766152793364,1.17635741,848.45,847.51,1.17500927]
[1766152793565,1.17635741,848.44,847.51,1.17500927]
[1766152793763,1.17635741,848.43,847.51,1.17500927]
[1766152793966,1.17635741,848.42,847.51,1.17500927]
[1766152794163,1.17635741,848.41,847.51,1.17500927]
[1766152794366,1.17635741,848.4,847.51,1.17500927]
[1766152794664,1.17635741,848.39,847.51,1.17500927]
[1766152794862,1.17635741,848.38,847.51,1.17500927]
[1766152795066,1.17635741,848.37,847.51,1.17500927]
[1766152795367,1.17635741,848.36,847.51,1.17500927]
[1766152795563,1.17635741,848.35,847.51,1.17500927]
[1766152795865,1.17635741,848.34,847.51,1.17500927]
[1766152796065,1.17635741,848.33,847.51,1.17500927]
[1766152796263,1.17635741,848.32,847.51,1.17500927]
[1766152796466,1.17635741,848.31,847.51,1.17500927]
[1766152796665,1.17961282,848.51,847.51,1.17500927]
[1766152796863,1.1770791,848.5,847.51,1.17500927]
[1766152797069,1.1770791,848.49,847.51,1.17500927]
[1766152797269,1.1770791,848.48,847.51,1.17500927]
[1766152797467,1.1770791,848.47,847.51,1.17500927]
[1766152797668,0.20513667,848.62,847.67,0.88402732]
[1766152797669,1.1770791,848.46,847.67,0.88402732]
[1766152797867,1.1770791,848.45,847.67,0.88402732]
[1766152798067,1.1770791,848.44,847.67,0.88402732]
[1766152798271,1.1770791,848.43,847.67,0.88402732]
[1766152798471,1.1770791,848.42,847.67,0.88402732]
[1766152798766,1.17961282,848.52,847.67,0.88402732]
[1766152798767,1.1770791,848.41,847.67,0.88402732]
[1766152799071,1.1770791,848.4,847.67,0.88402732]
[1766152799273,1.1770791,848.39,847.67,0.88402732]
[1766152799468,1.1770791,848.38,847.67,0.88402732]
[1766152799672,1.1770791,848.37,847.67,0.88402732]
[1766152799972,1.1770791,848.36,847.67,0.88402732]
[1766152800168,1.1770791,848.35,847.67,0.88402732]
[1766152800472,1.1770791,848.34,847.67,0.88402732]
[1766152800673,1.1770791,848.33,847.67,0.88402732]
[1766152800969,1.1770791,848.32,847.67,0.88402732]
[1766152801168,1.1770791,848.31,847.67,0.88402732]
[1766152801373,1.17961282,848.52,847.67,0.88402732]
[1766152801573,1.177079,848.51,847.67,0.88402732]
[1766152801767,1.177079,848.5,847.67,0.88402732]
[1766152802073,1.177079,848.49,847.78,0.88402732]
[1766152802273,1.177079,848.49,846.87,0.20526311]
[1766152802274,1.177079,848.48,847.76,0.88402732]
[1766152802570,1.177079,848.47,847.76,0.88402732]
[1766152802774,1.177079,848.46,847.76,0.88402732]
[1766152802974,1.177079,848.45,847.76,0.88402732]
[1766152803274,0.20513667,848.62,847.76,0.88402732]
[1766152804172,0.20513667,848.62,847.75,0.88402732]
[1766152805277,0.20513667,848.62,847.74,0.88402732]
[1766152807173,0.20513667,848.62,847.73,0.88402732]
[1766152810382,0.20513667,848.62,847.57,1.17500927]
[1766152810383,0.20513667,848.62,847.72,0.88402732]
[1766152810981,0.20513667,848.62,847.66,0.88402732]
[1766152812483,0.20513667,848.62,847.6,0.88402732]
[1766152812679,1.17961282,848.58,847.6,0.88402732]
[1766152817484,1.17961282,848.58,847.45,1.17500927]
[1766152817688,1.17961282,848.58,847.6,0.88262598]
[1766152823387,1.17961282,848.53,847.56,0.88262598]
[1766152823892,1.17961282,848.53,847.55,0.88262598]
[1766152824691,1.17961282,848.52,847.54,0.88262598]
[1766152825287,1.17961282,848.48,847.5,0.88262598]
[1766152825587,1.17961282,848.48,847.5,0.88284274]
[1766152826288,1.17961282,848.48,847.49,0.88284274]
[1766152827191,1.17961282,848.49,847.49,0.88284274]
[1766152829193,1.17961282,848.49,847.48,0.88284274]
[1766152829691,1.17961282,848.46,847.45,0.88284274]
[1766152829996,1.17961282,848.44,847.43,0.88284274]
[1766152830192,1.76941924,848.6,847.43,0.88284274]
[1766152830193,1.17961282,848.45,847.43,0.88284274]
[1766152830495,1.17961282,848.39,847.37,0.88284274]
[1766152831190,1.17961282,848.4,847.37,0.88284274]
[1766152831391,1.17961282,848.4,847.36,0.88284274]
[1766152832396,1.17961282,848.41,847.35,0.88284274]
[1766152833296,1.17961282,848.41,847.34,0.88284274]
[1766152834201,1.17961282,848.42,847.34,0.88284274]
[1766152834501,1.17961282,848.42,847.33,0.88284274]
[1766152835200,1.17961282,848.43,847.33,0.88284274]
[1766152835596,1.17961282,848.43,847.18,1.17500927]
[1766152835597,1.17961282,848.42,847.32,0.88284274]
[1766152835998,1.17961282,848.38,847.28,0.88284274]
[1766152836201,1.17961282,848.35,847.23,0.88284274]
[1766152836500,0.20513667,848.62,847.14,0.88284274]
[1766152836501,1.17961282,848.27,847.14,0.88284274]
[1766152836898,1.17961282,848.26,847.14,0.88284274]
[1766152837298,1.17961282,848.28,847.12,0.88284274]
[1766152837797,1.17961282,848.28,846.98,47.09904391]
[1766152837798,1.17961282,848.24,847.08,0.88284274]
[1766152837999,1.17961282,848.17,847.01,0.88284274]
[1766152838202,1.17961282,848.19,846.98,47.98188665]
[1766152839206,1.17961282,848.21,846.98,47.09904391]
[1766152840300,1.17961282,848.23,846.98,47.09904391]
[1766152841106,1.17961282,848.2,846.91,0.88284274]
[1766152841305,1.17961282,848.15,846.82,0.88284274]
[1766152842202,1.17961282,848.17,846.8,0.88284274]
[1766152843299,0.20513667,848.62,846.62,0.20531882]
[1766152843300,1.17961282,848.19,846.78,0.88284274]
[1766152844201,1.17961282,848.2,846.76,0.88284274]
[1766152844506,1.17961282,848.13,846.68,0.88284274]
[1766152844702,1.17961282,848.1,846.65,0.88284274]
[1766152845205,1.17961282,848.12,846.63,0.88284274]
[1766152846307,1.17961282,848.14,846.62,0.20531882]
[1766152847203,1.17961282,848.16,846.62,0.20531882]
[1766152848205,1.17961282,848.17,846.62,0.20531882]
[1766152849411,1.17961282,848.19,846.62,0.20531882]
[1766152850411,1.17961282,848.2,846.62,0.20531882]
[1766152851213,1.17961282,848.21,846.62,0.20531882]
[1766152852313,1.17961282,848.22,846.62,0.20531882]
[1766152853316,1.17961282,848.23,846.62,0.20531882]
[1766152854212,1.17961282,848.24,846.62,0.20531882]
[1766152854515,1.17961282,848.26,846.62,0.20531882]
[1766152854715,1.17961282,848.38,846.63,0.88284274]
[1766152856117,1.17961282,848.38,846.62,1.08816156]
[1766152857217,1.17961282,848.39,846.62,1.08816156]
[1766152859324,1.17961282,848.39,846.62,0.20531882]
[1766152862228,1.17961282,848.39,846.62,1.08816156]
[1766152863128,1.17961282,848.38,846.62,1.08816156]
[1766152864028,1.17961282,848.47,846.71,0.88284274]
[1766152864229,1.17961282,848.47,846.72,0.88284274]
[1766152865231,1.17961282,848.46,846.72,0.88284274]
[1766152866128,1.17961282,848.46,846.73,0.88284274]
[1766152866532,1.17961282,848.43,846.7,0.88284274]
[1766152867129,1.17961282,848.43,846.71,0.88284274]
[1766152867332,1.17961282,848.42,846.71,0.88284274]
[1766152868328,1.17961282,848.42,846.72,0.88284274]
[1766152869134,1.17961282,848.42,846.73,0.88284274]
[1766152869428,1.17961282,848.41,846.73,0.88284274]
[1766152870132,1.17961282,848.4,846.74,0.88284274]
[1766152870329,1.17961282,848.41,846.75,0.88284274]
[1766152871133,1.17961282,848.4,846.75,0.88284274]
[1766152871329,1.17961282,848.4,846.76,0.88284274]
[1766152871534,1.17961282,848.43,846.79,0.88284274]
[1766152872231,1.17961282,848.42,846.8,0.88284274]
[1766152872731,1.17961282,848.42,846.79,0.88284274]
[1766152873136,1.17961282,848.42,846.8,0.88284274]
[1766152874034,1.17961282,848.42,846.81,0.88284274]
[1766152874336,1.17961282,848.41,846.81,0.88284274]
[1766152875337,1.17961282,848.41,846.82,0.88284274]
[1766152876134,1.17961282,848.4,846.82,0.88284274]
[1766152876337,1.17961282,848.4,846.83,0.88284274]
[1766152877238,1.17961282,848.39,846.84,0.88284274]
[1766152878240,1.17961282,848.38,846.85,0.88284274]
[1766152879136,1.17961282,848.37,846.86,0.88284274]
[1766152880343,1.17961282,848.36,846.87,0.88284274]
[1766152881137,1.17961282,848.36,846.88,0.88284274]
[1766152881440,1.17961282,848.35,846.88,0.88284274]
[1766152882236,1.17961282,848.33,846.9,0.88284274]
[1766152883236,1.17961282,848.32,846.91,0.88284274]
[1766152884236,0.20513667,848.62,846.92,0.88284274]
[1766152884237,1.17961282,848.31,846.92,0.88284274]
[1766152885136,1.17961282,848.31,846.93,0.88284274]
[1766152885436,1.17961282,848.3,846.94,0.88284274]
[1766152885941,1.17961282,848.36,847.0,0.88284274]
[1766152886138,1.17961282,848.36,847.01,0.88284274]
[1766152886341,1.17961282,848.36,846.85,1.16873378]
[1766152886342,1.17961282,848.39,847.05,0.88284274]
[1766152886638,1.17961282,848.46,847.12,0.88284274]
[1766152887342,1.17961282,848.55,847.23,0.88284274]
[1766152888041,1.17961282,848.56,847.22,0.88284274]
[1766152888242,1.17961282,848.55,847.23,0.88284274]
[1766152888643,1.17961282,848.56,847.25,0.88284274]
[1766152888839,0.20513667,848.62,847.31,0.88284274]
[1766152889339,0.20513667,848.62,847.32,0.88284274]
[1766152889743,0.20513667,848.62,847.37,0.88284274]
[1766152890140,0.20513667,848.62,847.36,0.88284274]
[1766152890341,0.20513667,848.62,847.42,0.88284274]
[1766152891137,0.20513667,848.62,847.4,0.88284274]
[1766152891344,0.20513667,848.62,847.41,0.88284274]
[1766152892241,0.20513667,848.62,847.4,0.88284274]
[1766152892443,0.20513667,848.62,847.46,0.88284274]
[1766152893145,0.20513667,848.62,847.44,0.88284274]
[1766152894242,0.20513667,848.62,847.43,0.88284274]
[1766152895247,0.20513667,848.62,847.41,0.88284274]
[1766152895548,0.20513667,848.62,847.42,0.88284274]
[1766152896150,0.20513667,848.62,847.4,0.88284274]
[1766152897150,0.20513667,848.62,847.39,0.88284274]
[1766152898146,0.20513667,848.62,847.38,0.88284274]
[1766152898352,0.20513667,848.62,847.37,0.88284274]
[1766152899053,0.20513667,848.62,847.36,0.88284274]
[1766152900047,0.20513667,848.62,847.35,0.88284274]
[1766152900850,0.20513667,848.62,847.28,0.88284274]
[1766152901250,0.20513667,848.62,847.27,0.88284274]
[1766152902152,0.20513667,848.62,847.26,0.88284274]
[1766152904057,0.20513667,848.62,847.25,0.88284274]
[1766152905353,0.20513667,848.62,847.31,0.88284274]
[1766152906161,0.20513667,848.62,847.3,0.88284274]
[1766152906358,46.32087667,848.76,847.3,0.88284274]
[1766152906658,0.20517477,848.4,847.3,0.88284274]
[1766152909254,0.20517477,848.4,847.15,1.16873378]
[1766152909453,0.20517477,848.4,847.3,0.87604508]
[1766152910360,0.20517477,848.4,847.31,0.87604508]
[1766152910657,0.20517477,848.4,847.3,0.87604508]
[1766152911159,0.20517477,848.4,847.31,0.87604508]
[1766152912156,0.20517477,848.4,847.3,0.87604508]
[1766152912360,0.20517477,848.4,847.31,0.87604508]
[1766152913959,0.20517477,848.4,847.32,0.87604508]
[1766152917358,0.20517477,848.4,847.33,0.87604508]
[1766152921159,0.20517477,848.4,847.34,0.87604508]
[1766152921562,46.32087667,848.76,847.34,0.87604508]
[1766152921764,0.20515481,848.57,847.39,0.87604508]
[1766152922067,0.20515481,848.57,847.43,0.87604508]
[1766152922360,46.32087667,848.76,846.62,0.20531882]
[1766152922361,46.32087667,848.76,847.51,0.87604508]
[1766152922558,0.20513425,848.67,847.52,0.87604508]
[1766152923963,0.20513425,848.67,847.51,0.87604508]
[1766152927562,0.20513425,848.67,847.5,0.87604508]
[1766152928066,0.20513425,848.67,847.51,0.87604508]
[1766152930067,0.20513425,848.67,847.52,0.87604508]
[1766152930370,0.20513425,848.67,847.51,0.87604508]
[1766152931070,0.20513425,848.67,847.52,0.87604508]
[1766152932068,0.20513425,848.67,847.53,0.87604508]
[1766152932371,0.20513425,848.67,847.52,0.87604508]
[1766152933169,0.20513425,848.67,847.53,0.87604508]
[1766152934174,0.20513425,848.67,847.54,0.87604508]
[1766152936074,0.20513425,848.67,847.24,1.76421919]
[1766152936075,0.20513425,848.67,847.55,0.87604508]
[1766152937175,0.20513425,848.67,847.56,0.87604508]
[1766152938180,0.20513425,848.67,847.57,0.87604508]
[1766152939282,0.20513425,848.67,847.42,1.16873378]
[1766152939283,0.20513425,848.67,847.58,0.87604508]
[1766152940083,0.20513425,848.67,847.59,0.87604508]
[1766152940483,0.20513425,848.67,846.74,0.01530177]
[1766152940484,0.20513425,848.67,847.56,0.87604508]
[1766152941180,0.20513425,848.67,847.58,0.87604508]
[1766152942181,0.20513425,848.67,847.6,0.87604508]
[1766152943182,0.20513425,848.67,846.75,0.01116276]
[1766152943183,0.20513425,848.67,847.62,0.87604508]
[1766152944283,0.20513425,848.67,847.64,0.87604508]
[1766152945287,0.20513425,848.67,847.66,0.87604508]
[1766152946089,0.20513425,848.67,847.69,0.87604508]
[1766152947187,0.20513425,848.67,846.91,47.70362976]
[1766152947188,0.20513425,848.67,847.71,0.87604508]
[1766152948088,0.20513425,848.67,847.72,0.87604508]
[1766152949295,0.20513425,848.67,847.75,0.87604508]
[1766152950097,0.20513425,848.67,847.76,0.87604508]
[1766152962100,0.20513425,848.67,847.77,0.87604508]
[1766152964094,0.20513425,848.67,847.78,0.87604508]
[1766152964698,0.20513425,848.67,847.75,0.87604508]
[1766152966201,0.20513425,848.67,847.76,0.87604508]
[1766152966503,0.20513425,848.67,847.73,0.87604508]
[1766152970199,0.20513425,848.67,847.8,0.87604508]
[1766152973101,0.20513425,848.67,847.81,0.87604508]
[1766152975101,0.20513425,848.67,847.82,0.87604508]
[1766152977206,0.20513425,848.67,846.95,0.01471682]
[1766152977207,0.20513425,848.67,847.83,0.87604508]
[1766152978304,0.20513425,848.67,847.84,0.87604508]
[1766152979108,0.20513425,848.67,847.85,0.87604508]
[1766152979310,0.20513425,848.67,847.81,0.87604508]
[1766152981213,0.20513425,848.67,847.82,0.87604508]
[1766152982315,0.20513425,848.67,847.83,0.87604508]
[1766152985218,0.20513425,848.67,847.82,0.87604508]
[1766152990320,0.20513425,848.67,847.88,0.87604508]
[1766152998925,0.20513425,848.67,847.87,0.87604508]
[1766153012242,0.20513425,848.67,847.97,0.87604508]
[1766153012746,0.20513425,848.67,847.91,0.87604508]
[1766153017253,0.20513425,848.67,847.9,0.87604508]
[1766153024360,0.20513425,848.67,847.89,0.87604508]
[1766153024557,1.17961282,848.86,847.9,0.87604508]
[1766153024759,0.20509315,848.77,847.9,0.87604508]
[1766153028656,0.20509315,848.77,847.91,0.87604508]
[1766153029257,0.20509315,848.77,847.92,0.87604508]
[1766153029661,0.20509315,848.77,847.91,0.87604508]
[1766153029958,0.20509315,848.77,847.92,0.87604508]
[1766153032365,0.20509315,848.77,847.91,0.87604508]
[1766153043074,0.20509315,848.77,847.92,0.87604508]
[1766153048274,0.20509315,848.77,847.93,0.87604508]
[1766153058283,0.20509315,848.77,847.94,0.87604508]
[1766153060884,0.20509315,848.77,847.95,0.87604508]
[1766153061080,0.20509315,848.77,847.97,0.87604508]
[1766153070090,0.20509315,848.77,847.82,1.16873378]
[1766153070387,0.20509315,848.77,847.97,0.88192396]
[1766153072288,0.20509315,848.77,847.98,0.88192396]
[1766153073287,0.20509315,848.77,847.97,0.88192396]
[1766153076594,0.20509315,848.77,847.98,0.88192396]
[1766153077295,0.20509315,848.77,847.97,0.88192396]
[1766153078191,0.20509315,848.77,847.98,0.88192396]
[1766153078395,0.20509315,848.77,847.97,0.88192396]
[1766153078596,0.20509315,848.77,847.98,0.88192396]
[1766153083099,0.20509315,848.77,848.0,0.88192396]
[1766153084503,0.20509315,848.77,847.99,0.88192396]
[1766153085197,0.20509315,848.77,848.0,0.88192396]
[1766153085401,0.20509315,848.77,847.99,0.88192396]
[1766153087003,0.20509315,848.77,848.0,0.88192396]
[1766153088302,0.20509315,848.77,847.99,0.88192396]
[1766153092101,0.20509315,848.77,847.94,0.88192396]
[1766153104214,0.20509315,848.77,847.95,0.88192396]
[1766153105512,0.20509315,848.77,847.98,0.88192396]
[1766153110417,0.20509315,848.77,847.99,0.88192396]
[1766153110620,0.20509315,848.77,848.04,0.88192396]
[1766153111318,0.20509315,848.77,848.03,0.88192396]
[1766153115324,0.20509315,848.77,848.02,0.88192396]
[1766153115830,0.20509315,848.77,848.03,0.88192396]
[1766153116229,0.20509315,848.77,848.02,0.88192396]
[1766153119931,1.17961282,848.96,848.02,0.88192396]
[1766153120136,1.17961282,848.97,848.03,0.88192396]
[1766153120334,0.20506837,848.87,848.03,0.88192396]
[1766153120538,1.17961282,849.08,848.14,0.88192396]
[1766153120737,0.20505447,848.97,848.14,0.88192396]
[1766153121633,0.20505447,848.97,848.12,0.88192396]
[1766153122338,1.17961282,849.13,848.14,0.88192396]
[1766153122640,0.2050291,849.07,848.14,0.88192396]
[1766153123334,0.2050291,849.07,848.13,0.88192396]
[1766153124440,0.2050291,849.07,848.12,0.88192396]
[1766153126334,0.2050291,849.07,848.11,0.88192396]
[1766153127535,0.2050291,849.07,848.1,0.88192396]
[1766153127736,0.2050291,849.07,848.12,0.88192396]
[1766153129439,0.2050291,849.07,848.11,0.88192396]
[1766153131339,0.2050291,849.07,848.1,0.88192396]
[1766153132740,0.2050291,849.07,848.19,0.88192396]
[1766153133144,0.2050291,849.07,848.21,0.88192396]
[1766153133341,0.2050291,849.07,848.19,0.88192396]
[1766153133550,0.2050291,849.07,848.2,0.88192396]
[1766153134345,0.2050291,849.07,848.19,0.88192396]
[1766153135445,0.2050291,849.07,848.18,0.88192396]
[1766153136351,0.2050291,849.07,848.17,0.88192396]
[1766153136648,52.58740703,849.2,848.19,0.88192396]
[1766153136848,52.58740703,849.2,848.21,0.88192396]
[1766153137350,52.58740703,849.2,848.2,0.88192396]
[1766153138448,52.58740703,849.2,848.19,0.88192396]
[1766153139449,52.58740703,849.2,848.18,0.88192396]
[1766153141353,52.58740703,849.2,848.17,0.88192396]
[1766153142353,52.58740703,849.2,848.16,0.88192396]
[1766153144051,52.58740703,849.2,847.33,0.01003032]
[1766153144052,52.58740703,849.2,848.28,0.88192396]
[1766153144551,52.58740703,849.2,848.27,0.88192396]
[1766153145355,52.58740703,849.2,848.26,0.88192396]
[1766153146458,52.58740703,849.2,848.25,0.88192396]
[1766153147560,52.58740703,849.2,848.24,0.88192396]
[1766153149358,52.58740703,849.2,848.23,0.88192396]
[1766153150361,52.58740703,849.2,848.22,0.88192396]
[1766153152364,52.58740703,849.2,848.21,0.88192396]
[1766153153261,52.58740703,849.2,848.22,0.88192396]
[1766153153465,52.58740703,849.2,848.21,0.88192396]
[1766153163267,52.58740703,849.2,848.22,0.88192396]
[1766153164773,0.20500555,849.16,848.16,0.88192396]
[1766153164974,0.20500555,849.16,848.14,0.88192396]
[1766153165371,0.20500555,849.16,848.15,0.88192396]
[1766153165669,0.20500555,849.16,848.13,0.88192396]
[1766153166377,0.20500555,849.16,848.14,0.88192396]
[1766153166771,0.20500555,849.16,848.11,0.88192396]
[1766153167275,0.20500555,849.16,848.12,0.88192396]
[1766153167572,0.20500555,849.16,848.06,0.88192396]
[1766153168269,0.20500555,849.16,848.07,0.88192396]
[1766153168471,0.20500555,849.16,848.14,0.88192396]
[1766153169573,0.20500555,849.16,848.15,0.88192396]
[1766153170476,0.20500555,849.16,848.16,0.88192396]
[1766153172275,0.20500555,849.16,848.17,0.88192396]
[1766153173473,0.20500555,849.16,848.02,1.16873378]
[1766153173474,0.20500555,849.16,848.18,0.88192396]
[1766153175379,0.20500555,849.16,848.19,0.88192396]
[1766153176282,52.58740703,849.2,848.3,0.88192396]
[1766153176781,0.2049971,849.19,848.3,0.88192396]
[1766153177383,0.2049971,849.19,848.31,0.88192396]
[1766153178084,0.2049971,849.19,848.27,0.88192396]
[1766153178483,0.2049971,849.19,848.28,0.88192396]
[1766153179490,0.2049971,849.19,847.42,0.01195674]
[1766153179491,0.2049971,849.19,848.29,0.88192396]
[1766153180287,0.2049971,849.19,848.3,0.88192396]
[1766153181493,0.2049971,849.19,848.28,0.88192396]
[1766153181991,0.2049971,849.19,848.27,0.88192396]
[1766153184298,0.2049971,849.19,848.28,0.88192396]
[1766153185392,0.2049971,849.19,848.29,0.88192396]
[1766153187398,0.2049971,849.19,848.3,0.88192396]
[1766153189497,0.2049971,849.19,848.31,0.88192396]
[1766153189694,0.2049971,849.19,848.32,0.88192396]
[1766153189898,0.2049971,849.19,848.32,0.87790296]
[1766153190497,0.2049971,849.19,848.33,0.87790296]
[1766153192300,0.2049971,849.19,848.34,0.87790296]
[1766153193398,0.2049971,849.19,848.35,0.87790296]
[1766153197503,0.2049971,849.19,848.36,0.87790296]
[1766153204509,1.17961282,849.36,848.36,0.87790296]
[1766153204808,0.20497476,849.28,848.36,0.87790296]
[1766153205013,0.20497476,849.28,848.37,0.87790296]
[1766153214320,0.20497476,849.28,848.38,0.87790296]
[1766153220624,1.38458758,849.28,848.32,0.87790296]
[1766153221424,1.38458758,849.28,848.33,0.87790296]
[1766153223322,1.17961282,849.27,848.33,0.87790296]
[1766153224326,1.17961282,849.27,848.34,0.87790296]
[1766153225227,1.17961282,849.27,848.33,0.87790296]
[1766153225523,1.17961282,849.27,848.34,0.87790296]
[1766153226323,1.17961282,849.27,848.33,0.87790296]
[1766153226623,0.20497476,849.28,848.38,0.87790296]
[1766153228328,0.20497476,849.28,848.39,0.87790296]
[1766153235433,0.20497476,849.28,848.4,0.87790296]
[1766153240337,0.20497476,849.28,848.41,0.87790296]
[1766153284079,1.38458758,849.28,848.42,0.87790296]
[1766153284781,0.20497476,849.28,848.42,0.87790296]
[1766153305097,0.20497476,849.28,848.56,0.87790296]
[1766153305502,0.20497476,849.28,848.53,0.87790296]
[1766153306499,0.20497476,849.28,848.49,0.87790296]
[1766153307502,0.20497476,849.28,848.48,0.87790296]
[1766153310306,0.20497476,849.28,848.47,0.87790296]
[1766153310507,0.20497476,849.28,848.45,0.87790296]
[1766153310706,0.20497476,849.28,848.38,0.87790296]
[1766153311403,0.20497476,849.28,848.37,0.87790296]
[1766153312408,0.20497476,849.28,848.35,0.87790296]
[1766153313503,0.20497476,849.28,848.34,0.87790296]
[1766153331121,0.20497476,849.28,848.35,0.87790296]
[1766153338323,0.20497476,849.28,848.36,0.87790296]
[1766153357346,0.20497476,849.28,848.35,0.87790296]
[1766153358148,0.20497476,849.28,848.32,0.87790296]
[1766153360553,1.17961282,849.24,848.26,0.87790296]
[1766153362252,1.17961282,849.24,848.25,0.87790296]
[1766153363354,1.17961282,849.25,848.25,0.87790296]
[1766153364455,1.17961282,849.23,848.23,0.87790296]
[1766153364851,1.17961282,849.22,848.22,0.87790296]
[1766153367356,1.17961282,849.22,848.07,1.16873378]
[1766153367357,1.17961282,849.17,848.17,0.87790296]
[1766153368258,1.17961282,849.18,848.16,0.87790296]
[1766153368454,1.17961282,849.16,848.16,0.87790296]
[1766153368757,1.17961282,849.16,848.15,0.87790296]
[1766153369158,1.17961282,849.17,848.15,0.87790296]
[1766153369361,1.17961282,849.16,848.15,0.87790296]
[1766153371260,1.17961282,849.17,848.15,0.87790296]
[1766153372061,1.17961282,849.17,848.14,0.87790296]
[1766153373261,1.17961282,849.18,848.13,0.87790296]
[1766153376264,1.17961282,849.19,848.12,0.87790296]
[1766153379266,1.17961282,849.19,848.11,0.87790296]
[1766153380266,1.17961282,849.2,848.11,0.87790296]
[1766153384268,1.17961282,849.2,848.1,0.87790296]
[1766153385269,1.17961282,849.21,848.1,0.87790296]
[1766153388581,1.17961282,849.2,848.09,0.87790296]
[1766153390881,1.17961282,849.17,848.06,0.87790296]
[1766153392485,1.17961282,849.11,848.0,0.87790296]
[1766153393381,1.17961282,849.12,848.0,0.87790296]
[1766153394187,1.17961282,849.12,847.99,0.87790296]
[1766153396290,1.17961282,849.13,847.99,0.87790296]
[1766153398406,1.17961282,849.14,848.0,0.87790296]
[1766153399393,1.17961282,849.19,848.05,0.87790296]
[1766153403393,1.17961282,849.18,848.05,0.87790296]
[1766153405098,0.2050436,848.9,848.05,0.87790296]
[1766153405299,0.2050436,848.9,848.06,0.87790296]
[1766153406499,0.2050436,848.9,848.09,0.87790296]
[1766153407898,1.17961282,849.29,848.18,0.87790296]
[1766153408104,0.20503092,849.0,848.18,0.87790296]
[1766153409202,0.20503092,849.0,848.19,0.87790296]
[1766153412205,0.20503092,849.0,848.2,0.87790296]
[1766153413708,0.20503092,849.0,848.14,0.87790296]
[1766153414309,0.20503092,849.0,848.15,0.87790296]
[1766153416504,0.20503092,849.0,848.16,0.87790296]
[1766153418208,0.20503092,849.0,848.17,0.87790296]
[1766153420311,0.20503092,849.0,848.18,0.87790296]
[1766153425313,0.20503092,849.0,848.19,0.87790296]
[1766153429713,0.20503092,849.0,848.23,0.87790296]
[1766153431010,0.20503092,849.0,848.22,0.87790296]
[1766153441227,0.20503092,849.0,848.21,0.87790296]
[1766153453235,0.20503092,849.0,848.22,0.87790296]
[1766153455236,0.20503092,849.0,848.23,0.87790296]
[1766153456432,1.17961282,849.23,848.25,0.87790296]
[1766153456638,0.20500676,849.1,848.25,0.87790296]
[1766153457238,0.20500676,849.1,848.26,0.87790296]
[1766153457635,0.20500676,849.1,848.38,0.87790296]
[1766153458236,0.20500676,849.1,848.37,0.87790296]
[1766153458443,0.20500676,849.1,848.38,0.87790296]
[1766153458940,0.20500676,849.1,848.37,0.87790296]
[1766153460845,0.20500676,849.1,848.32,0.87790296]
[1766153461546,0.20500676,849.1,848.29,0.87790296]
[1766153466247,0.20500676,849.1,848.3,0.87790296]
[1766153467549,0.20500676,849.1,848.31,0.87790296]
[1766153469354,0.20500676,849.1,848.3,0.87790296]
[1766153473158,0.20500676,849.1,848.31,0.87790296]
[1766153474057,0.20500676,849.1,848.22,0.87790296]
[1766153474457,0.20500676,849.1,847.66,44.59393471]
[1766153474458,0.20500676,849.1,848.17,0.87790296]
[1766153474758,0.20500676,849.1,848.16,0.87790296]
[1766153476460,1.17961282,849.09,848.1,0.87790296]
[1766153478365,1.38461958,849.1,848.1,0.87790296]
[1766153478865,1.38461958,849.1,848.09,0.87790296]
[1766153479865,0.20500676,849.1,848.14,0.87790296]
[1766153480867,0.20500676,849.1,848.15,0.87790296]
[1766153486267,0.20500676,849.1,848.14,0.87790296]
[1766153486473,0.20500676,849.1,848.17,0.87790296]
[1766153488569,0.20500676,849.1,848.18,0.87790296]
[1766153491873,0.20500676,849.1,848.17,0.87790296]
[1766153495976,0.20500676,849.1,848.1,0.87790296]
[1766153499179,0.20500676,849.1,848.09,0.87790296]
[1766153500981,1.17961282,849.08,848.03,0.87790296]
[1766153502184,1.17961282,849.08,848.02,0.87790296]
[1766153502587,1.17961282,849.09,848.02,0.87790296]
[1766153505285,1.38461958,849.1,848.01,0.87790296]
[1766153508186,0.20500676,849.1,848.01,0.87790296]
[1766153509390,0.20500676,849.1,848.0,0.87790296]